fUSD/lending_fUSD_20260226
["ID","MTS","AMOUNT","RATE_DAILY","PERIOD"]
[406720915,1772119847472,-500.0,0.00013698,2]
[406720916,1772119847481,-500.0,0.00013698,2]
[406720917,1772119847492,-500.0,0.00013698,2]
[406720918,1772119847504,-500.0,0.00013698,2]
[406720919,1772119847513,-368.2260392,0.00013698,2]
[406720920,1772119847523,-500.0,0.00013698,2]
[406720921,1772119847532,-500.0,0.00013698,2]
[406720922,1772119847543,-584.92775525,0.00013698,2]
[406720923,1772119847553,-500.0,0.00013698,2]
[406720924,1772119847562,-500.0,0.00013698,2]
[406720925,1772119847574,-500.0,0.00013698,2]
[406720926,1772119847583,-500.0,0.00013698,2]
[406720927,1772119847592,-500.0,0.00013698,2]
[406720928,1772119847601,-500.0,0.00013698,2]
[406720929,1772119847618,-500.0,0.00013698,2]
[406720930,1772119847635,-500.0,0.00013698,2]
[406720931,1772119847645,-500.0,0.00013698,2]
[406720932,1772119847654,-318.18597163,0.00013698,2]
[406720933,1772119847663,-500.0,0.00013698,2]
[406720934,1772119847672,-500.0,0.00013698,2]
[406720935,1772119847682,-568.60354988,0.00013698,2]
[406720936,1772119847691,-500.0,0.00013698,2]
[406720937,1772119847796,-500.0,0.00013698,2]
[406720938,1772119847806,-500.0,0.00013698,2]
[406720939,1772119847815,-500.0,0.00013698,2]
[406720940,1772119847824,-500.0,0.00013698,2]
[406720941,1772119847833,-500.0,0.00013698,2]
[406720942,1772119847843,-500.0,0.00013698,2]
[406720943,1772119847852,-500.0,0.00013698,2]
[406720944,1772119847861,-500.0,0.00013698,2]
[406720945,1772119847870,-500.0,0.00013698,2]
[406720946,1772119847879,-500.0,0.00013698,2]
[406720947,1772119847888,-269.57915282,0.00013698,2]
[406720948,1772119847898,-151.77928561,0.00013698,2]
[406720949,1772119847907,-500.0,0.00013698,2]
[406720950,1772119847916,-500.0,0.00013698,2]
[406720951,1772119847925,-467.36158262,0.00013698,2]
[406720952,1772119847935,-500.0,0.00013698,2]
[406720953,1772119847946,-500.0,0.00013698,3]
[406720954,1772119847955,-500.0,0.00013698,4]
[406720955,1772119847965,-500.0,0.00013698,5]
[406720956,1772119847975,-500.0,0.00013698,6]
[406720957,1772119847984,-500.0,0.00013698,7]
[406720958,1772119847995,-500.0,0.00013698,8]
[406720959,1772119848004,-500.0,0.00013698,9]
[406720960,1772119848014,-500.0,0.00013698,10]
[406720961,1772119848025,-500.0,0.00013698,2]
[406720962,1772119848034,-405.62075362,0.00013698,2]
[406720963,1772119848043,-500.0,0.00013698,2]
[406720964,1772119848052,-500.0,0.00013698,2]
[406720965,1772119848061,-500.0,0.00013698,2]
[406720966,1772119848070,-500.0,0.00013698,2]
[406720967,1772119848079,-500.0,0.00013698,2]
[406720968,1772119848088,-500.0,0.00013698,2]
[406720969,1772119848098,-500.0,0.00013698,2]
[406720970,1772119848108,-500.0,0.00013698,2]
[406720971,1772119848123,-500.0,0.00013698,2]
[406720972,1772119848133,-500.0,0.00013698,2]
[406720973,1772119848142,-500.0,0.00013698,2]
[406720974,1772119848151,-500.0,0.00013698,2]
[406720975,1772119848163,-500.0,0.00013698,2]
[406720976,1772119848172,-500.0,0.00013698,2]
[406720977,1772119848181,-500.0,0.00013698,2]
[406720978,1772119848190,-500.0,0.00013698,2]
[406720979,1772119848199,-500.0,0.00013698,2]
[406720980,1772119848209,-500.0,0.00013698,2]
[406720981,1772119848218,-500.0,0.00013698,2]
[406720982,1772119848227,-500.0,0.00013698,2]
[406720983,1772119848236,-500.0,0.00013698,2]
[406720984,1772119848245,-500.0,0.00013698,2]
[406720985,1772119848255,-500.0,0.00013698,2]
[406720986,1772119848264,-500.0,0.00013698,2]
[406720987,1772119848273,-409.20397161,0.00013698,2]
[406720988,1772119848282,-271.25,0.00013699,2]
[406720989,1772119848291,-226.04,0.00013699,2]
[406720990,1772119848300,-188.37,0.00013699,2]
[406720991,1772119848311,-156.97,0.00013699,2]
[406720992,1772119848320,-784.9,0.00013699,2]
[406720993,1772119848329,-500.0,0.00014,30]
[406720994,1772119848339,-1466.1264312,0.00014116,2]
[406720995,1772119848350,-936.34,0.00014209,2]
[406720996,1772119848360,-224.40086961,0.00014224,2]
[406720997,1772119848369,-5170.0,0.00014233,2]
[406720998,1772119848379,-4687.60010129,0.00014292,2]
[406720999,1772119848388,-710.3,0.000145,2]
[406721000,1772119848398,-151.0,0.00014634,2]
[406721001,1772119848408,-1703.73609901,0.00014894,2]
[406721002,1772119848418,-500.0,0.00015,30]
[406721003,1772119848428,-500.0,0.00015,30]
[406721004,1772119848438,-1000.0,0.00015,30]
[406721005,1772119848448,-250.0,0.00015,2]
[406721006,1772119848459,-152.0,0.00015146,3]
[406721007,1772119848469,-202.67,0.00015155,14]
[406721008,1772119848479,-202.68,0.00015155,14]
[406721009,1772119848489,-4687.60010129,0.00015495,2]
[406721010,1772119848500,-188.75,0.0001552,2]
[406721011,1772119848511,-202.67,0.00015703,14]
[406721012,1772119848521,-202.68,0.00015703,14]
[406721013,1772119848530,-5100.0,0.000159,5]
[406721014,1772119848540,-2000.0,0.00016,30]
[406721015,1772119848550,-202.67,0.0001625,14]
[406721016,1772119848559,-202.68,0.0001625,14]
[406721017,1772119848568,-500.0,0.00016356,2]
[406721018,1772119848579,-700.0,0.00016356,2]
[406721019,1772119848589,-500.0,0.00016356,2]
[406721020,1772119848598,-2456.0,0.00016388,2]
[406721021,1772119848607,-1703.73609901,0.00016397,2]
[406721022,1772119848617,-160.0,0.000164,2]
[406721023,1772119848627,-606.4,0.00016438,2]
[406721024,1772119848636,-500.0,0.00016438,2]
[406721025,1772119848645,-500.0,0.00016493,2]
[406721026,1772119848655,-500.0,0.00016548,2]
[406721027,1772119848664,-1277.0,0.00016572,2]
[406721028,1772119848673,-920.0,0.00016572,2]
[406721029,1772119848683,-1211.0,0.00016572,2]
[406721030,1772119848692,-1340.0,0.00016572,2]
[406721031,1772119848701,-5983.0,0.00016572,2]
[406721032,1772119848711,-500.0,0.00016602,2]
[406721033,1772119848721,-1437.38525,0.00016605,7]
[406721034,1772119848731,-500.0,0.00016657,2]
[406721035,1772119848741,-4687.60010129,0.00016697,2]
[406721036,1772119848751,-500.0,0.00016712,2]
[406721037,1772119848760,-606.4,0.00016712,2]
[406721038,1772119848769,-188.75,0.00016748,2]
[406721039,1772119848779,-500.0,0.00016767,2]
[406721040,1772119848788,-379.89029775,0.00016822,2]
[406721041,1772119848798,-606.4,0.00016986,2]
[406721042,1772119848807,-500.0,0.00016999,2]
[406721043,1772119848817,-500.0,0.00016999,2]
[406721044,1772119848826,-500.0,0.00016999,11]
[406721045,1772119848836,-500.0,0.00016999,12]
[406721046,1772119848845,-160.0,0.00017,2]
[406721047,1772119848854,-500.0,0.00017,7]
[406721048,1772119848864,-417.39,0.00017,7]
[406721049,1772119848873,-300.0,0.00017,2]
[406721050,1772119848882,-200.0,0.00017036,2]
[406721051,1772119848892,-200.0,0.00017036,2]
[406721052,1772119848901,-200.0,0.00017036,2]
[406721053,1772119848911,-200.0,0.00017036,2]
[406721054,1772119848920,-200.0,0.00017036,2]
[406721055,1772119848929,-200.0,0.00017036,2]
[406721056,1772119848938,-200.0,0.00017036,2]
[406721057,1772119848948,-200.0,0.00017036,2]
[406721058,1772119848958,-200.0,0.00017036,2]
[406721059,1772119848967,-200.0,0.00017036,2]
[406721060,1772119848976,-200.0,0.00017036,2]
[406721061,1772119848986,-200.0,0.00017036,2]
[406721062,1772119848996,-200.0,0.00017036,2]
[406721063,1772119849006,-200.0,0.00017036,2]
[406721064,1772119849015,-200.0,0.00017036,2]
[406721065,1772119849025,-200.0,0.00017036,2]
[406721066,1772119849034,-200.0,0.00017036,2]
[406721067,1772119849043,-200.0,0.00017036,2]
[406721068,1772119849053,-200.0,0.00017036,2]
[406721069,1772119849061,-200.0,0.00017036,2]
[406721070,1772119849070,-200.0,0.00017036,2]
[406721071,1772119849080,-200.0,0.00017036,2]
[406721072,1772119849090,-200.0,0.00017036,2]
[406721073,1772119849099,-200.0,0.00017036,2]
[406721074,1772119849108,-200.0,0.00017036,2]
[406721075,1772119849118,-200.0,0.00017036,2]
[406721076,1772119849127,-200.0,0.00017036,2]
[406721077,1772119849230,-200.0,0.00017036,2]
[406721078,1772119849240,-200.0,0.00017036,2]
[406721079,1772119849250,-200.0,0.00017036,2]
[406721080,1772119849259,-200.0,0.00017036,2]
[406721081,1772119849268,-200.0,0.00017036,2]
[406721082,1772119849277,-200.0,0.00017036,2]
[406721083,1772119849286,-200.0,0.00017036,2]
[406721084,1772119849296,-200.0,0.00017036,2]
[406721085,1772119849305,-200.0,0.00017036,2]
[406721086,1772119849315,-240.0,0.00017036,2]
[406721087,1772119849325,-800.0,0.00017036,2]
[406721088,1772119849334,-800.0,0.00017036,2]
[406721089,1772119849343,-800.0,0.00017036,2]
[406721090,1772119849352,-800.0,0.00017036,2]
[406721091,1772119849364,-800.0,0.00017036,2]
[406721092,1772119849373,-800.0,0.00017036,2]
[406721093,1772119849382,-800.0,0.00017036,2]
[406721094,1772119849391,-800.0,0.00017036,2]
[406721095,1772119849399,-800.0,0.00017036,2]
[406721096,1772119849409,-800.0,0.00017036,2]
[406721097,1772119849418,-800.0,0.00017036,2]
[406721098,1772119849427,-800.0,0.00017036,2]
[406721099,1772119849437,-800.0,0.00017036,2]
[406721100,1772119849446,-800.0,0.00017036,2]
[406721101,1772119849456,-800.0,0.00017036,2]
[406721102,1772119849465,-800.0,0.00017036,2]
[406721103,1772119849475,-800.0,0.00017036,2]
[406721104,1772119849484,-800.0,0.00017036,2]
[406721105,1772119849497,-800.0,0.00017036,2]
[406721106,1772119849506,-800.0,0.00017036,2]
[406721107,1772119849515,-800.0,0.00017036,2]
[406721108,1772119849525,-800.0,0.00017036,2]
[406721109,1772119849536,-800.0,0.00017036,2]
[406721110,1772119849545,-800.0,0.00017036,2]
[406721111,1772119849554,-800.0,0.00017036,2]
[406721112,1772119849563,-800.0,0.00017036,2]
[406721113,1772119849574,-800.0,0.00017036,2]
[406721114,1772119849584,-800.0,0.00017036,2]
[406721115,1772119849593,-800.0,0.00017036,2]
[406721116,1772119849602,-800.0,0.00017036,2]
[406721117,1772119849614,-800.0,0.00017036,2]
[406721118,1772119849624,-800.0,0.00017036,2]
[406721119,1772119849633,-800.0,0.00017036,2]
[406721120,1772119849643,-800.0,0.00017036,2]
[406721121,1772119849652,-800.0,0.00017036,2]
[406721122,1772119849661,-800.0,0.00017036,2]
[406721123,1772119849670,-800.0,0.00017036,2]
[406721124,1772119849679,-800.0,0.00017036,2]
[406721125,1772119849688,-800.0,0.00017036,2]
[406721126,1772119849697,-800.0,0.00017036,2]
[406721127,1772119849706,-800.0,0.00017036,2]
[406721128,1772119849715,-800.0,0.00017036,2]
[406721129,1772119849725,-433.0,0.00017036,2]
[406721130,1772119849735,-1212.0,0.0001704,2]
[406721131,1772119849744,-18386.068904,0.000171,2]
[406721132,1772119849754,-5436.70489032,0.000171,2]
[406721133,1772119849763,-3240.0,0.00017133,2]
[406721134,1772119849773,-1306.0,0.000172,2]
[406721135,1772119849782,-1911.0,0.000172,2]
[406721136,1772119849791,-606.4,0.0001726,2]
[406721137,1772119849801,-1000.0,0.0001726,2]
[406721138,1772119849811,-152.0,0.00017276,4]
[406721139,1772119849821,-6400.0,0.000173,6]
[406721140,1772119849831,-845.0,0.0001736,2]
[406721141,1772119849840,-2844.0,0.0001736,2]
[406721142,1772119849850,-190.0,0.0001736,2]
[406721143,1772119849875,-1200.0,0.000174,6]
[406721144,1772119849891,-697.0,0.00017438,2]
[406721145,1772119849913,-150.0,0.00017438,2]
[406721146,1772119849931,-150.0,0.00017438,2]
[406721147,1772119849946,-150.0,0.00017438,2]
[406721148,1772119849965,-150.0,0.00017438,2]
[406721149,1772119849985,-242.0,0.00017438,2]
[406721150,1772119850004,-565.0,0.00017438,2]
[406721151,1772119850022,-150.0,0.00017438,2]
[406721152,1772119850039,-150.0,0.00017438,2]
[406721153,1772119850059,-150.0,0.00017438,2]
[406721154,1772119850075,-152.0,0.00017438,2]
[406721155,1772119850092,-658.0,0.0001744,2]
[406721156,1772119850106,-150.0,0.0001744,2]
[406721157,1772119850124,-208.0,0.0001744,2]
[406721158,1772119850141,-500.0,0.00017449,2]
[406721159,1772119850154,-500.0,0.00017449,13]
[406721160,1772119850170,-1200.0,0.000175,6]
[406721161,1772119850185,-350.0,0.00017506,2]
[406721162,1772119850199,-529.0,0.00017531,2]
[406721163,1772119850214,-606.4,0.00017534,2]
[406721164,1772119850230,-1000.0,0.00017534,2]
[406721165,1772119850245,-529.0,0.00017538,2]
[406721166,1772119850262,-1200.0,0.000176,6]
[406721167,1772119850277,-202.67,0.0001762,14]
[406721168,1772119850292,-202.67,0.0001762,14]
[406721169,1772119850307,-1833.85447521,0.0001764,2]
[406721170,1772119850322,-350.0,0.00017674,2]
[406721171,1772119850338,-1200.0,0.000177,6]
[406721172,1772119850353,-500.0,0.00017726,7]
[406721173,1772119850371,-700.0,0.00017726,7]
[406721174,1772119850386,-500.0,0.00017726,7]
[406721175,1772119850401,-693.94657191,0.0001773,2]
[406721176,1772119850417,-1988.0,0.000178,6]
[406721177,1772119850433,-529.0,0.00017806,2]
[406721178,1772119850448,-606.4,0.00017808,2]
[406721179,1772119850463,-500.0,0.00017808,2]
[406721180,1772119850478,-1000.0,0.00017808,2]
[406721181,1772119850494,-800.0,0.00017808,2]
[406721182,1772119850511,-350.0,0.00017815,2]
[406721183,1772119850525,-392.03735,0.0001782,2]
[406721184,1772119850540,-392.03736,0.0001782,2]
[406721185,1772119850557,-158.27050591,0.0001782,2]
[406721186,1772119850572,-500.0,0.00017829,2]
[406721187,1772119850589,-500.0,0.00017829,2]
[406721188,1772119850604,-137550.62068451,0.0001783,2]
[406721189,1772119850622,-500.0,0.00017863,2]
[406721190,1772119850637,-264.21015618,0.0001789,2]
[406721191,1772119850652,-465.42516497,0.00017891,2]
[406721192,1772119850667,-465.42516495,0.00017896,2]
[406721193,1772119850683,-151.0,0.00017897,2]
[406721194,1772119850699,-350.0,0.00017897,2]
[406721195,1772119850715,-21846.65485425,0.00017898,2]
[406721196,1772119850730,-201.70042322,0.00017898,3]
[406721197,1772119850745,-2641.30302155,0.00017898,2]
[406721198,1772119850760,-500.0,0.00017899,2]
[406721199,1772119850776,-500.0,0.00017899,14]
[406721200,1772119850792,-662.41100623,0.00017899,2]
[406721201,1772119850808,-300.0,0.00017899,2]
[406721202,1772119850827,-666.0,0.00017899,2]
[406721203,1772119850839,-21846.65485425,0.00017899,2]
[406721204,1772119850850,-201.70042321,0.00017899,3]
[406721205,1772119850860,-173.45,0.000179,2]
[406721206,1772119851058,-25000.0,0.000179,3]
[406721207,1772119851084,-204.31050693,0.000179,2]
[406721208,1772119851094,-1703.73609901,0.000179,2]
[406721209,1772119851103,-21846.65485425,0.000179,2]
[406721210,1772119851119,-465.42516495,0.000179,2]
[406721211,1772119851128,-4687.60010129,0.000179,2]
[406721212,1772119851138,-201.70042321,0.000179,3]
[406721213,1772119851147,-300.0,0.00017907,2]
[406721214,1772119851157,-1000.0,0.00017908,2]
[406721215,1772119851166,-500.0,0.00017918,2]
[406721216,1772119851176,-300.0,0.00017923,2]
[406721217,1772119851185,-1034.1174351,0.00017924,2]
[406721218,1772119851195,-150.0,0.00017929,2]
[406721219,1772119851204,-150.0,0.00017948,2]
[406721220,1772119851214,-239.0611416,0.00017964,2]
[406721221,1772119851223,-5800.0,0.00017965,2]
[406721222,1772119851232,-300.0,0.0001797,2]
[406721223,1772119851243,-400.0,0.0001797,2]
[406721224,1772119851252,-300.0,0.0001797,2]
[406721225,1772119851261,-400.0,0.0001797,2]
[406721226,1772119851271,-400.0,0.0001797,2]
[406721227,1772119851280,-400.0,0.0001797,2]
[406721228,1772119851289,-400.0,0.0001797,2]
[406721229,1772119851299,-400.0,0.0001797,2]
[406721230,1772119851308,-500.0,0.00017972,2]
[406721231,1772119851318,-174.26065421,0.00017973,2]
[406721232,1772119851327,-150.0,0.00017973,2]
[406721233,1772119851336,-187.29970089,0.00017973,2]
[406721234,1772119851346,-150.0,0.00017973,2]
[406721235,1772119851355,-150.0,0.00017973,2]
[406721236,1772119851368,-339.21457322,0.00017973,2]
[406721237,1772119851377,-150.0,0.00017973,2]
[406721238,1772119851387,-150.0,0.00017973,2]
[406721239,1772119851395,-156.66979557,0.00017973,2]
[406721240,1772119851405,-150.0,0.00017973,2]
[406721241,1772119851414,-150.0,0.00017973,2]
[406721242,1772119851423,-150.0,0.00017973,2]
[406721243,1772119851432,-150.0,0.00017973,2]
[406721244,1772119851442,-150.0,0.00017973,2]
[406721245,1772119851451,-150.0,0.00017973,2]
[406721246,1772119851460,-150.0,0.00017973,2]
[406721247,1772119851469,-150.0,0.00017973,2]
[406721248,1772119851479,-500.0,0.00017973,2]
[406721249,1772119851488,-500.0,0.00017973,2]
[406721250,1772119851500,-187.29970089,0.00017973,2]
[406721251,1772119851510,-339.21457322,0.00017973,2]
[406721252,1772119851519,-156.66979557,0.00017973,2]
[406721253,1772119851528,-150.0,0.00017973,2]
[406721254,1772119851539,-208.88429413,0.00017973,2]
[406721255,1772119851548,-150.0,0.00017973,2]
[406721256,1772119851558,-150.0,0.00017973,2]
[406721257,1772119851568,-187.29970089,0.00017973,2]
[406721258,1772119851579,-339.21457322,0.00017973,2]
[406721259,1772119851588,-156.66979557,0.00017973,2]
[406721260,1772119851598,-150.0,0.00017973,2]
[406721261,1772119851607,-150.0,0.00017973,2]
[406721262,1772119851621,-150.0,0.00017973,2]
[406721263,1772119851630,-150.0,0.00017973,2]
[406721264,1772119851639,-187.29970089,0.00017973,2]
[406721265,1772119851648,-339.21457322,0.00017973,2]
[406721266,1772119851658,-156.66979557,0.00017973,2]
[406721267,1772119851667,-150.0,0.00017973,2]
[406721268,1772119851677,-5800.0,0.00017973,2]
[406721269,1772119851686,-150.0,0.00017974,2]
[406721270,1772119851695,-150.0,0.00017974,2]
[406721271,1772119851705,-187.29970089,0.00017974,2]
[406721272,1772119851715,-339.21457322,0.00017974,2]
[406721273,1772119851725,-156.66979557,0.00017974,2]
[406721274,1772119851734,-150.0,0.00017974,2]
[406721275,1772119851743,-150.0,0.00017974,2]
[406721276,1772119851753,-150.0,0.00017974,2]
[406721277,1772119851762,-150.0,0.00017974,2]
[406721278,1772119851771,-150.0,0.00017974,2]
[406721279,1772119851780,-150.0,0.00017974,2]
[406721280,1772119851790,-187.29970089,0.00017974,2]
[406721281,1772119851800,-339.21457322,0.00017974,2]
[406721282,1772119851809,-156.66979557,0.00017974,2]
[406721283,1772119851819,-150.0,0.00017974,2]
[406721284,1772119851828,-150.0,0.00017974,2]
[406721285,1772119851839,-150.0,0.00017974,2]
[406721286,1772119851848,-150.0,0.00017974,2]
[406721287,1772119851857,-187.29970089,0.00017974,2]
[406721288,1772119851870,-339.21457322,0.00017974,2]
[406721289,1772119851880,-156.66979557,0.00017974,2]
[406721290,1772119851890,-150.0,0.00017974,2]
[406721291,1772119851899,-150.0,0.00017974,2]
[406721292,1772119851909,-150.0,0.00017975,2]
[406721293,1772119851918,-187.29970089,0.00017975,2]
[406721294,1772119851928,-339.21457322,0.00017975,2]
[406721295,1772119851938,-156.66979557,0.00017975,2]
[406721296,1772119851948,-150.0,0.00017975,2]
[406721297,1772119851957,-150.0,0.00017975,2]
[406721298,1772119851967,-150.0,0.00017975,2]
[406721299,1772119851977,-187.29970089,0.00017975,2]
[406721300,1772119851987,-339.21457322,0.00017975,2]
[406721301,1772119851997,-156.66979557,0.00017975,2]
[406721302,1772119852007,-150.0,0.00017975,2]
[406721303,1772119852017,-150.0,0.00017975,2]
[406721304,1772119852027,-150.0,0.00017975,2]
[406721305,1772119852036,-150.0,0.00017975,2]
[406721306,1772119852046,-150.0,0.00017975,2]
[406721307,1772119852055,-187.29970089,0.00017975,2]
[406721308,1772119852064,-339.21457322,0.00017975,2]
[406721309,1772119852073,-156.66979557,0.00017975,2]
[406721310,1772119852083,-150.0,0.00017975,2]
[406721311,1772119852095,-150.0,0.00017975,2]
[406721312,1772119852104,-150.0,0.00017975,2]
[406721313,1772119852115,-150.0,0.00017975,2]
[406721314,1772119852124,-187.29970089,0.00017975,2]
[406721315,1772119852134,-339.21457322,0.00017975,2]
[406721316,1772119852143,-156.66979557,0.00017975,2]
[406721317,1772119852154,-150.0,0.00017975,2]
[406721318,1772119852164,-150.0,0.00017975,2]
[406721319,1772119852175,-150.0,0.00017975,2]
[406721320,1772119852185,-150.0,0.00017976,2]
[406721321,1772119852194,-187.29970089,0.00017976,2]
[406721322,1772119852204,-339.21457322,0.00017976,2]
[406721323,1772119852213,-156.66979557,0.00017976,2]
[406721324,1772119852223,-150.0,0.00017976,2]
[406721325,1772119852233,-150.0,0.00017976,2]
[406721326,1772119852242,-150.0,0.00017976,2]
[406721327,1772119852253,-187.29970089,0.00017976,2]
[406721328,1772119852263,-339.21457322,0.00017976,2]
[406721329,1772119852272,-156.66979557,0.00017976,2]
[406721330,1772119852281,-150.0,0.00017976,2]
[406721331,1772119852290,-150.0,0.00017976,2]
[406721332,1772119852299,-150.0,0.00017976,2]
[406721333,1772119852310,-150.0,0.00017976,2]
[406721334,1772119852319,-150.0,0.00017976,2]
[406721335,1772119852329,-187.29970089,0.00017976,2]
[406721336,1772119852339,-339.21457322,0.00017976,2]
[406721337,1772119852348,-156.66979557,0.00017976,2]
[406721338,1772119852358,-150.0,0.00017976,2]
[406721339,1772119852373,-150.0,0.00017976,2]
[406721340,1772119852382,-150.0,0.00017976,2]
[406721341,1772119852392,-150.0,0.00017976,2]
[406721342,1772119852401,-187.29970089,0.00017976,2]
[406721343,1772119852411,-339.21457322,0.00017976,2]
[406721344,1772119852420,-156.66979557,0.00017976,2]
[406721345,1772119852430,-150.0,0.00017977,2]
[406721346,1772119852439,-150.0,0.00017977,2]
[406721347,1772119852448,-150.0,0.00017977,2]
[406721348,1772119852457,-150.0,0.00017977,2]
[406721349,1772119852466,-150.0,0.00017977,2]
[406721350,1772119852476,-150.0,0.00017977,2]
[406721351,1772119852486,-187.29970089,0.00017977,2]
[406721352,1772119852499,-339.21457322,0.00017977,2]
[406721353,1772119852508,-156.66979557,0.00017977,2]
[406721354,1772119852518,-150.0,0.00017977,2]
[406721355,1772119852528,-251.65074113,0.00017977,2]
[406721356,1772119852541,-187.29970089,0.00017977,2]
[406721357,1772119852551,-339.21457322,0.00017977,2]
[406721358,1772119852561,-156.66979557,0.00017977,2]
[406721359,1772119852571,-150.0,0.00017977,2]
[406721360,1772119852587,-150.0,0.00017977,2]
[406721361,1772119852596,-150.0,0.00017977,2]
[406721362,1772119852606,-187.29970089,0.00017977,2]
[406721363,1772119852618,-339.21457322,0.00017977,2]
[406721364,1772119852636,-156.66979557,0.00017977,2]
[406721365,1772119852645,-150.0,0.00017977,2]
[406721366,1772119852654,-150.0,0.00017977,2]
[406721367,1772119852664,-150.0,0.00017977,2]
[406721368,1772119852674,-150.0,0.00017977,2]
[406721369,1772119852683,-150.0,0.00017977,2]
[406721370,1772119852692,-150.0,0.00017977,2]
[406721371,1772119852701,-150.0,0.00017978,2]
[406721372,1772119852710,-187.29970089,0.00017978,2]
[406721373,1772119852719,-339.21457322,0.00017978,2]
[406721374,1772119852729,-156.66979557,0.00017978,2]
[406721375,1772119852740,-150.0,0.00017978,2]
[406721376,1772119852751,-150.0,0.00017978,2]
[406721377,1772119852762,-187.29970089,0.00017978,2]
[406721378,1772119852772,-339.21457322,0.00017978,2]
[406721379,1772119852782,-156.66979557,0.00017978,2]
[406721380,1772119852793,-150.0,0.00017978,2]
[406721381,1772119852804,-150.0,0.00017978,2]
[406721382,1772119852815,-150.0,0.00017978,2]
[406721383,1772119852825,-150.0,0.00017978,2]
[406721384,1772119852835,-150.0,0.00017978,2]
[406721385,1772119852844,-187.29970089,0.00017978,2]
[406721386,1772119852854,-339.21457322,0.00017978,2]
[406721387,1772119852868,-156.66979557,0.00017978,2]
[406721388,1772119852880,-150.0,0.00017978,2]
[406721389,1772119852889,-150.0,0.00017978,2]
[406721390,1772119852898,-150.0,0.00017978,2]
[406721391,1772119852907,-150.0,0.00017978,2]
[406721392,1772119852917,-187.29970089,0.00017978,2]
[406721393,1772119852926,-339.21457322,0.00017978,2]
[406721394,1772119852936,-156.66979557,0.00017978,2]
[406721395,1772119852945,-150.0,0.00017978,2]
[406721396,1772119852955,-150.0,0.00017979,2]
[406721397,1772119852964,-150.0,0.00017979,2]
[406721398,1772119852973,-150.0,0.00017979,2]
[406721399,1772119852983,-187.29970089,0.00017979,2]
[406721400,1772119852992,-339.21457322,0.00017979,2]
[406721401,1772119853002,-156.66979557,0.00017979,2]
[406721402,1772119853012,-150.0,0.00017979,2]
[406721403,1772119853022,-150.0,0.00017979,2]
[406721404,1772119853031,-150.0,0.00017979,2]
[406721405,1772119853040,-187.29970089,0.00017979,2]
[406721406,1772119853049,-339.21457322,0.00017979,2]
[406721407,1772119853059,-156.66979557,0.00017979,2]
[406721408,1772119853068,-150.0,0.00017979,2]
[406721409,1772119853077,-150.0,0.00017979,2]
[406721410,1772119853087,-150.0,0.00017979,2]
[406721411,1772119853096,-150.0,0.00017979,2]
[406721412,1772119853105,-187.29970089,0.00017979,2]
[406721413,1772119853118,-339.21457322,0.00017979,2]
[406721414,1772119853128,-156.66979557,0.00017979,2]